Cogmind - Beta 15 @@@ ROGUE MODE // 2025.06.18 @ 22:58:14 Player: 7604 Result: Destroyed by as-71577 with Assembled Maul Performance ------------- Evolutions (0) 0 Regions Visited (2) 400 Robots Destroyed (19) 95 Value Destroyed (271) 271 Prototype IDs (2) 40 Alien Tech Used (0) 0 Bonus (0) 0 TOTAL SCORE: 806 Bonus ------- None Cogmind --------- Core Integrity 0/250 Matter 250/300 Energy 63/100 System Corruption 6% Temperature Cool (48) Movement Treading (320) Ox2 Location -10/Mines Parts ------- > --- POWER (1) -------- (None) > --- PROPULSION (2) --- Light Treads > --- UTILITY (2) ------ High-capacity Storage Unit > --- WEAPON (2) ------- Assault Rifle Assault Rifle > --- INVENTORY (20) --- Structural Scanner Improved Terrain Scanner Hammer Peak State ------------ > --- POWER ------------ Light Ion Engine > --- PROPULSION ------- Aluminum Leg Aluminum Leg > --- UTILITY ---------- Small Storage Unit Seismic Detector > --- WEAPON ----------- Assault Rifle Assault Rifle > --- INVENTORY -------- Ion Engine Light Treads Light Treads Wheel Compact Wheel Improved Terrain Scanner Assault Rifle Mining Laser [Rating: 8] Favorites ----------- Power Ion Engine Engine Ion Engine Propulsion Aluminum Leg Treads Light Treads Leg Aluminum Leg Utility Seismic Detector Device Seismic Detector Storage High-capacity Storage Unit Weapon Assault Rifle Ballistic Gun Assault Rifle Launcher Grenade Launcher Impact Weapon Hammer Build | -11 -10 -10 ------- Run | Yrd Mat Min Slots Evolved . | . . . Power . | . . . Propulsion . | . . . Utility . | . . . Weapon . | . . . Parts Attached 12 | 1 6 5 Power 1 | . 1 . Engine 1 | . 1 . Core . | . . . Reactor . | . . . Propulsion 2 | . 2 . Treads 2 | . 2 . Leg . | . . . Wheel . | . . . Hover . | . . . Flight . | . . . Utility 3 | 1 1 1 Device 2 | 1 . 1 Storage 1 | . 1 . Processor . | . . . Hackware . | . . . Protection . | . . . Artifact . | . . . Weapon 6 | . 2 4 Energy Gun . | . . . Energy Cannon . | . . . Ballistic Gun 4 | . 1 3 Ballistic Cannon . | . . . Launcher 1 | . . 1 Special Weapon . | . . . Impact Weapon 1 | . 1 . Slashing Weapon . | . . . Piercing Weapon . | . . . Special Melee Weapon . | . . . Unidentified Prototypes . | . . . Parts Lost 8 | . 1 7 Power 2 | . 1 1 Propulsion 1 | . . 1 Utility 1 | . . 1 Weapon 4 | . . 4 Highest Loss Streak 3 | . 1 3 To Critical Strikes . | . . . Average Backups 6 | 6 7 5 Power . | 1 . . Propulsion 1 | 4 2 . Utility 1 | . 1 2 Weapon 3 | 1 3 3 Tool/Special . | . . . Unused Backups 12 | 6 4 2 Power 2 | 1 1 . Propulsion 4 | 2 2 . Utility 2 | 1 . 1 Weapon 4 | 2 1 1 Tool/Special . | . . . Average Slot Usage (%) 94 | . 99 88 Engine 10 | . 13 6 Treads 13 | . 2 26 Leg 13 | . 25 . Device 13 | . 14 12 Storage 14 | . 14 14 Ballistic Gun 27 | . 27 27 Peak Build Rating 8 | 7 8 7 Average Rating 7 | 6 7 6 On Entrance 6 | 6 7 7 Naked Turns . | . . . Heaviest Build 50 | 13 50 50 Greatest Support 40 | 20 40 40 Greatest Overweight (x) 2 | . 2 2 Average Overweight (x) . | . . 1 Largest Inventory Capacity 20 | 8 20 20 Average Capacity 15 | 8 11 20 Most Carried 9 | 7 9 8 Average Carried 6 | 6 7 5 Final Capacity 20 | 8 20 20 Final Carried 7 | 7 7 3 Class Distribution -------------------- 100% | Mutant Dominant Class ---------------- Mutant | -10/Materials Mutant | -10/Mines Resources | -11 -10 -10 ----------- Run | Yrd Mat Min Matter Collected 641 | 223 234 184 Remotely . | . . . Salvage Created 382 | 39 267 76 Parts 36 | 7 22 7 Haulers Intercepted . | . . . Recyclers Shooed 2 | 1 1 . Parts Field Recycled . | . . . Retrieved Matter . | . . . Parts Self-Destructed . | . . . Prevented . | . . . Kills | -11 -10 -10 ------- Run | Yrd Mat Min Combat Hostiles Destroyed 16 | . 8 8 Guns 14 | . 8 6 AOE 2 | . . 2 Classes Destroyed 8 | 1 4 3 Worker 1 | . . 1 Tunneler 3 | 2 . 1 Recycler 1 | . 1 . Watcher 2 | . 2 . Swarmer 9 | . 6 3 Grunt 2 | . 2 . Demolisher 1 | . . 1 Assembled 4 | . . 4 Best Kill Streak 5 | 1 4 5 Combat Bots Only 4 | . 4 3 Max Kills in Single Turn 2 | 1 1 2 Gunslinging . | . . . Exploded 1 | . . 1 Melee . | . . . Uniques/NPCs Destroyed . | . . . Combat | -11 -10 -10 -------- Run | Yrd Mat Min Hostile Shots Fired 100 | . 51 49 Missed 19 | . 14 5 Hits 81 | . 37 44 Melee 11 | . . 11 Projectile 70 | . 37 33 AOE 11 | . . 11 Critical Strikes 1 | . . 1 Part Disruptions 1 | . 1 . Damage Taken 1412 | . 418 994 Core 265 | . 53 212 Absorbed by Shields . | . . . Core Remaining (%) 100 | 100 . . Volleys Fired 56 | 3 29 24 Largest 2 | 2 2 2 Hottest 40 | 40 40 40 Shots Fired 110 | 6 58 46 Gun 107 | 6 58 43 Cannon . | . . . Launcher 3 | . . 3 Special . | . . . Kinetic 107 | 6 58 43 Thermal . | . . . Explosive 3 | . . 3 Electromagnetic . | . . . Robot Hit Streak 8 | 1 3 8 Robot Miss Streak 7 | 2 7 4 Penetration Max . | . . . Secondary Targets 3 | . 1 2 Max Gunslinging Chain 1 | . 1 1 Shots Hit Robots 53 | 2 27 24 Core Hits 31 | 2 14 15 Critical Kills 1 | . 1 . Critical Parts Destroyed 1 | . 1 . Critical Strikes 2 | . 2 . Destroy 2 | . 2 . Melee Attacks 2 | . 1 1 Impact 2 | . 1 1 Slashing . | . . . Piercing . | . . . Sneak Attacks . | . . . Combat Hostiles . | . . . Follow-up Attacks . | . . . Damage Inflicted 1008 | 27 350 631 Guns 691 | 27 350 314 Cannons . | . . . Explosions 317 | . . 317 Melee . | . . . Ramming . | . . . Kinetic 691 | 27 350 314 Thermal . | . . . Explosive 317 | . . 317 Electromagnetic . | . . . Impact . | . . . Slashing . | . . . Piercing . | . . . Highest Corruption 6 | . 2 6 Average Corruption 2 | . 1 2 Corruption Purged . | . . . Corruption Blocked . | . . . Effects 15 | . 3 12 Message Errors 2 | . . 2 Heat Flow Errors 4 | . 2 2 Energy Discharges 4 | . 1 3 Data Loss (minor) 1 | . . 1 Data Loss (major) 1 | . . 1 Misfires 1 | . . 1 Alerts 2 | . . 2 Overload Shots . | . . . Overflow Damage 10 | . . 10 Projectiles . | . . . Explosions 10 | . . 10 Melee . | . . . Knockbacks . | . . . Impact . | . . . Kinetic . | . . . Secondary . | . . . Self-Inflicted Damage 69 | . . 69 Shots 3 | . . 3 Rammed . | . . . Targets Rammed . | . . . Kicked . | . . . Crushed . | . . . Highest Temperature 247 | . 95 247 Average Temperature 105 | . 50 128 Received Heat Transfer 30 | . 30 . Siege Activations . | . . . Martial Activations . | . . . Shielding Activations . | . . . Robots Disrupted . | . . . Combat Hostiles . | . . . Robots Corrupted . | . . . Combat Hostiles . | . . . Parts Fried . | . . . Impact Corruptions . | . . . Robots Melted . | . . . Combat Hostiles . | . . . Parts Melted . | . . . Heat Transferred . | . . . Parts Sabotaged . | . . . Parts Stolen . | . . . Parts Stripped . | . . . Power Chain Reactions . | . . . Alert | -11 -10 -10 ------- Run | Yrd Mat Min Maximum Alert Level . | . . . Low Security (%) 100 | 100 100 100 Level 1 . | . . . Level 2 . | . . . Level 3 . | . . . Level 4 . | . . . Level 5 . | . . . High Security . | . . . Max Security . | . . . Peak Influence 140 | 5 140 91 Initial 21 | . . 21 Average 26 | 1 40 13 Influence Increases 453 | 10 315 128 Destroy 0b10 Robot/C 240 | . 160 80 Destroy 0b10 Robot/NC 35 | 10 15 10 Destroy Leader 64 | . 44 20 Successful Hack 20 | . 20 . Select Force Hacks 60 | . 60 . Destroy Structure 19 | . 1 18 Lose Combat Pursuer 15 | . 15 . Influence Decreases 453 | 10 261 182 Entered New Map 33 | . . 33 Time Decay 406 | 10 251 145 Lost Part 14 | . 10 4 Squads Dispatched 3 | . 3 . Investigation 3 | . 3 . Extermination . | . . . Reinforcement . | . . . Assault . | . . . Garrison . | . . . Intercept . | . . . Searches Triggered . | . . . Construction Impeded . | . . . Haulers Reinforced . | . . . Active Scanning Responses . | . . . Cargo Convoy Interrupts . | . . . Stealth | -11 -10 -10 --------- Run | Yrd Mat Min Distress Signals 2 | . 2 . Communications Jammed . | . . . Distress Signals . | . . . Times Spotted 30 | . 18 12 Peak Tracking Total 4 | . 4 3 Tactical Retreats 3 | . 3 . Traps | -11 -10 -10 ------- Run | Yrd Mat Min Traps Triggered 4 | . 4 . Indirectly . | . . . Trap Hack Attempts . | . . . Triggered . | . . . Disarmed . | . . . Reprogrammed . | . . . Reused . | . . . Traps Extracted . | . . . Installed . | . . . Triggered . | . . . Machines | -11 -10 -10 ---------- Run | Yrd Mat Min Machines Disabled . | . . . Max in Single Turn . | . . . Machines Repaired . | . . . Machines Dismantled . | . . . Machines Sabotaged . | . . . Overloaded Fab Kills . | . . . Hacking | -11 -10 -10 --------- Run | Yrd Mat Min Machines Accessed 8 | . 8 . Terminals 6 | . 6 . Fabricators . | . . . Repair Stations . | . . . Recycling Units 2 | . 2 . Scanalyzers . | . . . Garrison Access . | . . . Total Hacks 29 | . 29 . Successful 13 | . 13 . Failed 16 | . 16 . Catastrophic 2 | . 2 . Database Lockouts . | . . . Manual 17 | . 17 . Terminals 24 | . 24 . Fabricators . | . . . Repair Stations . | . . . Recycling Units 5 | . 5 . Scanalyzers . | . . . Garrison Access . | . . . Terminal Hacks 4 | . 4 . Robot Schematic 1 | . 1 . Robot Analysis 1 | . 1 . Prototype ID Bank 1 | . 1 . Zone Layout 1 | . 1 . Fabricator Hacks . | . . . Repair Station Hacks . | . . . Recycling Unit Hacks 2 | . 2 . Retrieve Components 2 | . 2 . Scanalyzer . | . . . Garrison Access Hacks . | . . . Unauthorized Hacks 7 | . 7 . Terminals 5 | . 5 . Botnet 1 | . 1 . Skim 4 | . 4 . Fabricators . | . . . Repair Stations . | . . . Recycling Units 2 | . 2 . Tunnel 2 | . 2 . Scanalyzers . | . . . Garrison Access . | . . . Data Cores Recovered . | . . . Used . | . . . Hacking Detections 6 | . 6 . Full Trace Events . | . . . Feedback Events . | . . . Feedback Blocked . | . . . Robot Schematics Acquired 1 | . 1 . Robots Built . | . . . Authchips . | . . . Time . | . . . Total Robot Build Rating . | . . . Part Schematics Acquired . | . . . Parts Built . | . . . Authchips . | . . . Time . | . . . Total Part Build Rating . | . . . Parts Repaired . | . . . Time . | . . . Parts Recycled . | . . . Recycled Matter . | . . . Retrieved Matter . | . . . Retrieved Components 8 | . 8 . Parts Scanalyzed . | . . . Part Schematics Acquired . | . . . Parts Damaged . | . . . Bothacking | -11 -10 -10 ------------ Run | Yrd Mat Min Used RIF Installer . | . . . Robots Hacked . | . . . Non-combat . | . . . Combat . | . . . Robot Hacks Applied . | . . . Relay Couplers Released . | . . . Fabnet Peak Effective % . | . . . Robots Rewired . | . . . Allies Hacked . | . . . Hacks Repelled . | . . . Allies | -11 -10 -10 -------- Run | Yrd Mat Min Total Allies . | . . . Largest Group . | . . . Highest-Rated Group . | . . . Highest-Rated Ally . | . . . Total Orders . | . . . Ally Attacks . | . . . Total Damage . | . . . Kills . | . . . Allies Corrupted . | . . . Allies Melted . | . . . Intel | -11 -10 -10 ------- Run | Yrd Mat Min Active Infowar (turns) 1671 | 6 943 722 Structural 1 | . . 1 Seismic 1670 | 6 943 721 Robot Analysis Total 1 | . 1 . Derelict Logs Recovered . | . . . Drone Launches . | . . . Drone Recoveries . | . . . Exploration | -11 -10 -10 ------------- Run | Yrd Mat Min Turns Passed 1832 | 68 943 821 Spaces Moved 840 | 14 564 262 Core . | . . . Treads 294 | . 32 262 Legs 546 | 14 532 . Wheels . | . . . Hover . | . . . Flight . | . . . Fastest Speed 120 | 120 120 240 Average Speed 175 | 120 144 245 Slowest Speed 320 | 120 260 320 Overloaded Moves . | . . . Propulsion Burnouts . | . . . Robots Hopped . | . . . Potential Cave-ins . | . . . Cave-ins Triggered . | . . . Exploration Rate (%) 45 | 3 76 57 Regions Visited 2 Branch Regions 1 Pre-discovered Areas 2 | . 2 . Known Exits Taken . | . . . Unknown Exits Taken 2 | 1 1 . Scrap Searched . | . . . Spaces Dug 2 | . 1 1 Terrain Destroyed 23 | . 1 22 Melee 2 | . 1 1 Projectile . | . . . AOE 21 | . . 21 Terrain Rammed . | . . . Walls Destroyed . | . . . Machines Disabled . | . . . Actions | -11 -10 -10 --------- Run | Yrd Mat Min Total 1087 | 58 636 393 Wait 159 | 40 25 94 Move 838 | 13 563 262 Hop . | . . . Pick Up 7 | 1 6 . Fast Attach 1 | 1 . . Attach 6 | . 1 5 Detach 1 | . . 1 Swap 11 | . 5 6 Drop 6 | . 6 . Fire 56 | 3 29 24 Melee 2 | . 1 1 Ram . | . . . Kick . | . . . Crush . | . . . Escape Stasis . | . . . Rewire . | . . . Trap . | . . . Miscellaneous . | . . . Route ------- -11/Scrapyard -10/Materials (discovered 3 exits: [*Mat x2] / [*Min]) -10/Mines (discovered 1 exit: [*Mat]) History --------- Turn | Location | Event 7 | -11/Scrapyard | Discovered new exit (range 3) 69 | -11/Scrapyard | Entered Materials 238 | -10/Materials | Discovered new exit (range 9) 305 | -10/Materials | Build established: Mutant 472 | -10/Materials | Discovered new exit (range 13) 568 | -10/Materials | Discovered new exit (range 11) 569 | -10/Materials | Derelicts attacked the area 1012 | -10/Materials | Entered Mines 1305 | -10/Mines | Assembled infested the area 1386 | -10/Mines | Core integrity fell below 50% 1414 | -10/Mines | Lost 3 parts (1p2w) 1508 | -10/Mines | Discovered new exit (range 14) 1828 | -10/Mines | Core integrity fell below 20% 1833 | -10/Mines | Destroyed by as-71577 with Assembled Maul Last Messages --------------- 01746_ Lgt. Treads destroyed. 01759_ Seismic Detector destroyed. 01762_ as-49780 destroyed. 01765_ Acquired 13 matter. 01780_ System corrupted: IFF burst signal emitted. 01791_ Acquired 15 matter. 01809_ as-75505 sneak attacks. 01809_ T-07 Excavator system corrupted by crushing effect. 01809_ T-07 Excavator knocked back. 01810_ T-07 Excavator system terminally corrupted. 01820_ Assault Rifle destroyed. 01820_ System corrupted by crushing effect (+3). 01821_ System corrupted: Heat flow error (+218). 01829_ U-05 Engineer lays Concrete. 01830_ Grenade Launcher destroyed. 01830_ System corrupted by crushing effect (+1). 01831_ U-05 Engineer lays Concrete. Map ----- +----------------------------------------------------+ | ??????????## ### ###???# #?????????????# | | ?????????## """ ##### #?????????????# | | ????????## """ ##????????????# | | ????????# ### """ ##????????#### | | ????????# ##?## """ ##### #????????# | | ????????# ##???# ##???# ##???????# ### | | ????????# ##???# ###????# ######### #?? | | ????????# ##### ##?????## #?? | | ????????# ## ##??????# #?? | | ????????## ## ### ##???????# #######?? | | ?????????## ## #?###?????????## ##???????? | | ??????????#### #??????????????## ####????????? | | ?????????????# ######?????######## ##???????????? | | ?????????????# #????########## #????????????? | | ?????????????##### #??##### ## #????????????? | | ??????????????#### #?##### # ##???????????? | | ?????????????## ##### #### # ##???????????? | | ????????????## ### ## ##???????????? | | ???????????## ##???????????? | | ??????????## u # =##???????????? | | ?????????## ####!%=##???????????? | | ?????????# # # ????????? | | ?????????# % % ######## ???????? | | ?????????## % #######????????? | | ??????????## %* a #?????????????? | | ???????????## a@a ## ##????????????? | | ???????????## #### ##????????????? | | ??????????## ### ##### ##????????????? | | ???????##### #####?## ##????????????? | | ??????## ## % ##?????# #?????????????? | | ?????## ##### ##??????# #?????????????? | | ?????# < ##??# ###??????# #?????????????? | | ?????# #??# # #??????# ?????????????? | | ?????## #??## # #?????# ????????????? | | ??????### ##??# ###?????# ???????????? | | ????????# ##???### ##????## ??????????? | | ????????# #??????# #?????##### ?????????? | | ????????# #??????## % ##?????????? ?????????? | | ????????# #??????##|*##??????????? ????????? | | ??????### ####??## %!###?????????? ???????? | | ?????## # #?## # ##?????????### ???????? | | ????## # #?# ! #???????????? ##??????? | | ????# ### #???????????? ###????????? | | ????# ## % ##????????????????????????? | | ????## # ### ##????????????????????????? | | ?????# # #?# * #????????????????????????? | | ?????# = # ### #????????????????????????? | | ?????## # ## # ##????????????????????????? | | ??????# ### ## ###?????????????????????????? | | ??????### =!% ##### #?#?????????????????????????? | +----------------------------------------------------+ Best States ------------- Heat Dissipation 25 Energy Generation 10 Energy Capacity 250 Matter Stores 300 Matter Capacity 300 Sight Range 16 Terrain Scan Density 10 Evasion (%) 55 Recoil Reduction 2 Item Schematics ----------------- None Robot Schematics ------------------ M-13 Machinist | -10/Materials | Hacked Fabricated ------------ Nothing Repaired ---------- Nothing Alien Tech Used ----------------- None Achievements -------------- None Challenges ------------ None Game ------ Seed AutogunPoweredWartreads Manual? 0 Play Time 00:13:50 Cumulative 458.0 hours Start 2025.06.18 @ 22:47:35 End 2025.06.18 @ 22:58:14 Sessions 1 Manual Loads 0 Difficulty Rogue Special Mode None Game No. 239 Rogue 176 Adventurer 63 Explorer 0 Win Type - Total 9 Types 8/0/0/1/0/0/0/0/0/0 Lore% 89 Gallery% 80 Achievement% 66 Wizard Run 0 Options --------- Layout 1 ASCII 0 Keyboard 1 Movement Numpad Keybinds 0 Fullscreen 1 Font 24/Terminus Map View 50x35 Zoom Use 0% Tactical HUD 1 Map Filters NONE Filters NONE Steam 1 RUN: 73971fad-8cf6-42a1-ac7d-0050914940e3